Cogmind - Beta 16 @@@ ROGUE MODE // 2025.11.25 @ 15:49:12 Player: C0-2MO Result: Destroyed by 7R-0NT(R) with Subdweller Laser Performance ------------- Evolutions (0) 0 Regions Visited (2) 400 Robots Destroyed (29) 145 Value Destroyed (649) 649 Prototype IDs (1) 20 Alien Tech Used (0) 0 Bonus (0) 0 TOTAL SCORE: 1214 Bonus ------- None Cogmind --------- Core Integrity 0/250 Matter 168/300 Energy 124/125 System Corruption 0% Temperature Cool (6) Movement Rolling (145) Ox3 Location -10/Subcaves Parts ------- > --- POWER (1) -------- Light Ion Engine > --- PROPULSION (2) --- Compact Wheel > --- UTILITY (2) ------ High-capacity Storage Unit Makeshift Light Armor Plating > --- WEAPON (2) ------- Heavy Riot Gun Battle Cannon > --- INVENTORY (20) --- Light Treads Subdweller Monowheel Flight Unit Makeshift Flight Unit Large Storage Unit Huge Storage Unit Structural Scanner Subdweller Optics Improved Medium Laser Improved Medium Laser Makeshift Laser Beam Cannon Subdweller Beam Cannon Mini Grenade Launcher Mini Grenade Launcher Subdweller Shrapnel Launcher Mining Laser Piercing Trap Peak State ------------ > --- POWER ------------ Light Ion Engine > --- PROPULSION ------- Spiked Treads Subdweller Monowheel > --- UTILITY ---------- High-capacity Storage Unit Makeshift Light Armor Plating > --- WEAPON ----------- Heavy Riot Gun Improved Medium Laser > --- INVENTORY -------- Light Treads Compact Wheel Flight Unit Heat Sink Large Storage Unit Huge Storage Unit Large Battery Structural Scanner Subdweller Optics Improved Medium Laser Improved Medium Laser Makeshift Laser Beam Cannon Beam Cannon Subdweller Beam Cannon Battle Cannon Mini Grenade Launcher Mini Grenade Launcher Mining Laser Piercing Trap [Rating: 20] Favorites ----------- Power Light Ion Engine Engine Light Ion Engine Propulsion Compact Wheel Treads Light Treads Wheel Compact Wheel Utility Large Storage Unit Device Seismic Detector Storage Large Storage Unit Processor Improved Targeting Computer Protection Makeshift Light Armor Plating Weapon Improved Medium Laser Energy Gun Improved Medium Laser Energy Cannon Subdweller Beam Cannon Ballistic Gun Light Assault Rifle Ballistic Cannon Battle Cannon Special Weapon Mining Laser Build | -11 -10 -10 ------- Run | Yrd Mat Sub Slots Evolved . | . . . Power . | . . . Propulsion . | . . . Utility . | . . . Weapon . | . . . Parts Attached 28 | 6 8 14 Power 1 | . . 1 Engine 1 | . . 1 Core . | . . . Reactor . | . . . Propulsion 8 | 2 . 6 Treads 3 | 1 . 2 Leg . | . . . Wheel 5 | 1 . 4 Hover . | . . . Flight . | . . . Utility 7 | 2 2 3 Device 2 | 1 . 1 Storage 3 | 1 1 1 Processor 1 | . 1 . Hackware . | . . . Protection 1 | . . 1 Artifact . | . . . Weapon 12 | 2 6 4 Energy Gun 6 | . 5 1 Energy Cannon 2 | . . 2 Ballistic Gun 2 | 2 . . Ballistic Cannon 1 | . . 1 Launcher . | . . . Special Weapon 1 | . 1 . Impact Weapon . | . . . Slashing Weapon . | . . . Piercing Weapon . | . . . Special Melee Weapon . | . . . Unidentified Prototypes 1 | . 1 . Parts Lost 3 | . . 3 Power . | . . . Propulsion 2 | . . 2 Utility . | . . . Weapon 1 | . . 1 Highest Loss Streak 2 | . . 2 To Critical Strikes . | . . . Average Backups 14 | 2 13 16 Power . | . 1 . Propulsion 2 | 1 2 3 Utility 4 | . 3 5 Weapon 6 | . 6 8 Tool/Special . | . . . Unused Backups 17 | . 3 14 Power . | . . . Propulsion 3 | . . 3 Utility 5 | . 1 4 Weapon 9 | . 2 7 Tool/Special . | . . . Average Slot Usage (%) 96 | . 92 99 Engine 10 | . 6 14 Treads 10 | . 14 7 Wheel 17 | . 14 20 Device 3 | . 5 1 Storage 14 | . 14 14 Processor 7 | . 8 6 Protection 2 | . . 5 Energy Gun 26 | . 26 26 Peak Build Rating 20 | 6 14 20 Average Rating 13 | 4 11 16 On Entrance 6 | . 6 13 Avg Prop Armor Cover (%) 15 | 17 15 14 Naked Turns . | . . . Heaviest Build 63 | 9 27 63 Greatest Support 36 | 16 16 36 Greatest Overweight (x) 3 | . 1 3 Average Overweight (x) 1 | . . 1 Largest Inventory Capacity 20 | 8 15 20 Average Capacity 16 | 7 14 19 Most Carried 20 | 5 15 20 Average Carried 15 | 3 13 17 Final Capacity 20 | 8 15 20 Final Carried 18 | 4 15 18 Class Distribution -------------------- 100% | Mutant Dominant Class ---------------- Mutant | -10/Materials Mutant | -10/Subcaves Resources | -11 -10 -10 ----------- Run | Yrd Mat Sub Matter Collected 514 | 304 90 120 Remotely . | . . . Salvage Created 955 | 152 420 383 Parts 66 | 12 35 19 Haulers Intercepted 1 | . 1 . Recyclers Shooed 1 | 1 . . Parts Field Recycled . | . . . Retrieved Matter . | . . . Parts Self-Destructed 9 | . . 9 Prevented 3 | . . 3 Parts Restored . | . . . Kills | -11 -10 -10 ------- Run | Yrd Mat Sub Combat Hostiles Destroyed 18 | . 9 9 Guns 18 | . 9 9 Classes Destroyed 10 | 2 6 2 Worker 1 | . 1 . Tunneler 3 | 3 . . Hauler 1 | . 1 . Recycler 1 | 1 . . Operator 1 | . 1 . Turret 2 | . . 2 Watcher 2 | . 2 . Swarmer 7 | . 3 4 Grunt 8 | . 6 2 Subdweller 3 | . . 3 Best Kill Streak 6 | 3 4 6 Combat Bots Only 3 | . 3 2 Max Kills in Single Turn 1 | 1 1 1 Gunslinging . | . . . Exploded . | . . . Melee . | . . . Uniques/NPCs Destroyed . | . . . Combat | -11 -10 -10 -------- Run | Yrd Mat Sub Hostile Shots Fired 127 | . 29 98 Missed 36 | . 8 28 Hits 91 | . 21 70 Projectile 91 | . 21 70 Critical Strikes 5 | . 1 4 Damage Taken 1262 | . 240 1022 Core 255 | . 72 183 Absorbed by Shields . | . . . Core Remaining (%) 100 | 100 . . Volleys Fired 79 | 11 33 35 Largest 2 | 2 2 2 Hottest 160 | 40 112 160 Shots Fired 151 | 22 64 65 Gun 132 | 22 62 48 Cannon 17 | . . 17 Launcher . | . . . Special 2 | . 2 . Kinetic 22 | 22 . . Thermal 121 | . 64 57 Explosive . | . . . Electromagnetic 8 | . . 8 Robot Hit Streak 8 | 4 7 8 Robot Miss Streak 6 | 3 6 2 Penetration Max . | . . . Secondary Targets 1 | . . 1 Max Gunslinging Chain 1 | . . 1 Shots Hit Robots 86 | 10 33 43 Core Hits 45 | 6 20 19 Critical Kills . | . . . Critical Parts Destroyed . | . . . Critical Strikes 7 | . 5 2 Burn 7 | . 5 2 Melee Attacks . | . . . Impact . | . . . Slashing . | . . . Piercing . | . . . Sneak Attacks . | . . . Combat Hostiles . | . . . Follow-up Attacks . | . . . Damage Inflicted 1470 | 113 516 841 Guns 1231 | 113 516 602 Cannons 239 | . . 239 Explosions . | . . . Melee . | . . . Ramming . | . . . Kinetic 113 | 113 . . Thermal 1223 | . 516 707 Explosive . | . . . Electromagnetic 134 | . . 134 Impact . | . . . Slashing . | . . . Piercing . | . . . Highest Corruption . | . . . Average Corruption . | . . . Corruption Purged . | . . . Corruption Blocked . | . . . Overload Shots . | . . . Overflow Damage . | . . . Projectiles . | . . . Explosions . | . . . Melee . | . . . Knockbacks . | . . . Impact . | . . . Kinetic . | . . . Secondary . | . . . Self-Inflicted Damage . | . . . Shots . | . . . Rammed . | . . . Targets Rammed . | . . . Kicked . | . . . Crushed . | . . . Highest Temperature 703 | . 201 703 Average Temperature 103 | . 65 168 Received Heat Transfer 883 | . 114 769 Effects 8 | . . 8 Shutdowns 2 | . . 2 Energy Bleed 2 | . . 2 Matter Decay 1 | . . 1 Short Circuit 3 | . . 3 Siege Activations . | . . . Martial Activations . | . . . Shielding Activations . | . . . Robots Disrupted . | . . . Combat Hostiles . | . . . Robots Corrupted . | . . . Combat Hostiles . | . . . Parts Fried . | . . . Impact Corruptions . | . . . Robots Melted . | . . . Combat Hostiles . | . . . Parts Melted 3 | . 2 1 Heat Transferred 3071 | . 1591 1480 Parts Sabotaged . | . . . Parts Stolen . | . . . Parts Stripped . | . . . Power Chain Reactions . | . . . Alert | -11 -10 -10 ------- Run | Yrd Mat Sub Maximum Alert Level . | . . . Low Security (%) 100 | 100 100 . Level 1 . | . . . Level 2 . | . . . Level 3 . | . . . Level 4 . | . . . Level 5 . | . . . High Security . | . . . Max Security . | . . . Peak Influence 75 | 10 75 . Initial . | . . . Average 23 | 2 25 . Influence Increases 621 | 20 341 260 Destroy 0b10 Robot/C 340 | . 180 160 Destroy 0b10 Robot/NC 45 | 20 25 . Destroy Leader 66 | . 56 10 Successful Hack 17 | . 17 . Disable Machine 15 | . 15 . Destroy Structure 3 | . 3 . Lose Combat Pursuer 135 | . 45 90 Influence Decreases 621 | 20 341 260 Time Decay 611 | 20 341 250 Lost Part 10 | . . 10 Squads Dispatched 2 | . 2 . Investigation 1 | . 1 . Extermination . | . . . Reinforcement 1 | . 1 . Assault . | . . . Garrison . | . . . Intercept . | . . . Searches Triggered . | . . . Construction Impeded . | . . . Haulers Reinforced . | . . . Active Scanning Responses . | . . . Cargo Convoy Interrupts . | . . . Stealth | -11 -10 -10 --------- Run | Yrd Mat Sub Distress Signals 3 | . 3 . Communications Jammed . | . . . Distress Signals . | . . . Times Spotted 39 | . 19 20 Peak Tracking Total 4 | . 4 4 Tactical Retreats 5 | . 2 3 Traps | -11 -10 -10 ------- Run | Yrd Mat Sub Traps Triggered 1 | . 1 . Indirectly . | . . . Trap Hack Attempts . | . . . Triggered . | . . . Disarmed . | . . . Reprogrammed . | . . . Reused . | . . . Traps Extracted . | . . . Installed . | . . . Triggered . | . . . Most Traps Carried 1 | . . 1 Machines | -11 -10 -10 ---------- Run | Yrd Mat Sub Machines Disabled 2 | . 1 1 Max in Single Turn 1 | . 1 1 Machines Repaired . | . . . Machines Dismantled . | . . . Machines Sabotaged . | . . . Overloaded Fab Kills . | . . . Hacking | -11 -10 -10 --------- Run | Yrd Mat Sub Machines Accessed 7 | . 7 . Terminals 6 | . 6 . Fabricators . | . . . Repair Stations 1 | . 1 . Recycling Units . | . . . Scanalyzers . | . . . Garrison Access . | . . . Total Hacks 20 | . 20 . Successful 11 | . 11 . Failed 9 | . 9 . Catastrophic 1 | . 1 . Database Lockouts . | . . . Manual 15 | . 15 . Terminals 17 | . 17 . Fabricators . | . . . Repair Stations 3 | . 3 . Recycling Units . | . . . Scanalyzers . | . . . Garrison Access . | . . . Terminal Hacks 2 | . 2 . Robot Analysis 2 | . 2 . Fabricator Hacks . | . . . Repair Station Hacks 1 | . 1 . Refit 1 | . 1 . Recycling Unit Hacks . | . . . Scanalyzer . | . . . Garrison Access Hacks . | . . . Unauthorized Hacks 8 | . 8 . Terminals 8 | . 8 . Botnet 3 | . 3 . Skim 5 | . 5 . Fabricators . | . . . Repair Stations . | . . . Recycling Units . | . . . Scanalyzers . | . . . Garrison Access . | . . . Data Cores Recovered . | . . . Used . | . . . Hacking Detections 7 | . 7 . Full Trace Events . | . . . Feedback Events . | . . . Feedback Blocked . | . . . Robot Schematics Acquired . | . . . Robots Built . | . . . Authchips . | . . . Time . | . . . Total Robot Build Rating . | . . . Part Schematics Acquired . | . . . Parts Built . | . . . Authchips . | . . . Time . | . . . Total Part Build Rating . | . . . Part Studies Acquired . | . . . Parts Repaired . | . . . Time . | . . . Parts Recycled . | . . . Recycled Matter . | . . . Retrieved Matter . | . . . Retrieved Components . | . . . Parts Scanalyzed . | . . . Part Schematics Acquired . | . . . Parts Damaged . | . . . Bothacking | -11 -10 -10 ------------ Run | Yrd Mat Sub Used RIF Installer . | . . . Robots Hacked . | . . . Non-combat . | . . . Combat . | . . . Robot Hacks Applied . | . . . Relay Couplers Released . | . . . Fabnet Peak Effective % . | . . . Robots Rewired . | . . . Allies Hacked . | . . . Hacks Repelled . | . . . Allies | -11 -10 -10 -------- Run | Yrd Mat Sub Total Allies . | . . . Largest Group . | . . . Highest-Rated Group . | . . . Highest-Rated Ally . | . . . Total Orders . | . . . Ally Attacks . | . . . Total Damage . | . . . Kills . | . . . Allies Corrupted . | . . . Allies Melted . | . . . Intel | -11 -10 -10 ------- Run | Yrd Mat Sub Active Infowar (turns) 583 | 33 387 163 Structural 163 | . . 163 Seismic 420 | 33 387 . Robot Analysis Total 2 | . 2 . Derelict Logs Recovered 1 | . . 1 Drone Launches . | . . . Drone Recoveries . | . . . Exploration | -11 -10 -10 ------------- Run | Yrd Mat Sub Turns Passed 2412 | 112 1028 1272 Spaces Moved 1373 | 60 613 700 Core 1 | 1 . . Treads . | . . . Legs . | . . . Wheels 1372 | 59 613 700 Hover . | . . . Flight . | . . . Fastest Speed 50 | 50 100 115 Average Speed 119 | 99 114 124 Slowest Speed 145 | 100 115 145 Overloaded Moves . | . . . Propulsion Burnouts . | . . . Robots Hopped . | . . . Potential Cave-ins . | . . . Cave-ins Triggered . | . . . Exploration Rate (%) 43 | 3 94 32 Regions Visited 2 Branch Regions 1 Pre-discovered Areas . | . . . Known Exits Taken 1 | . 1 . Unknown Exits Taken 1 | 1 . . Scrap Searched 2 | . . 2 Spaces Dug 3 | . 2 1 Terrain Destroyed 5 | . 2 3 Melee . | . . . Projectile 5 | . 2 3 AOE . | . . . Terrain Rammed . | . . . Walls Destroyed . | . . . Machines Disabled . | . . . Actions | -11 -10 -10 --------- Run | Yrd Mat Sub Total 1997 | 90 872 1035 Wait 465 | 9 197 259 Move 1371 | 59 612 700 Hop . | . . . Pick Up 29 | 5 14 10 Fast Attach 9 | 5 2 2 Attach 4 | 1 . 3 Detach 1 | . . 1 Swap 22 | . 7 15 Drop 17 | . 7 10 Fire 79 | 11 33 35 Melee . | . . . Ram . | . . . Kick . | . . . Crush . | . . . Escape Stasis . | . . . Rewire . | . . . Trap . | . . . Miscellaneous . | . . . Route ------- -11/Scrapyard -10/Materials (discovered 6 exits: [*Mat x3] / [*Min x2] / *Sub) -10/Subcaves (discovered 3 exits: *Mat x2 / *Rec) History --------- Turn | Location | Event 19 | -11/Scrapyard | Discovered new exit (range 16) 113 | -11/Scrapyard | Entered Materials 113 | -10/Materials | Discovered new exit (range 9) 280 | -10/Materials | Discovered new exit (range 9) 306 | -10/Materials | Build established: Mutant 418 | -10/Materials | Discovered new exit (range 16) 494 | -10/Materials | Discovered new exit (range 14) 613 | -10/Materials | Derelicts attacked the area 641 | -10/Materials | Discovered new exit (range 16) 733 | -10/Materials | Learned Storage emergency access door positions 807 | -10/Materials | Identified exit to Subcaves 977 | -10/Materials | Learned location of 2 exits from Subcaves 1016 | -10/Materials | Learned Storage trap positions 1141 | -10/Materials | Entered Subcaves 1142 | -10/Subcaves | Identified exit to Materials 1143 | -10/Subcaves | Identified exit to Recycling 1342 | -10/Subcaves | Core integrity fell below 50% 1423 | -10/Subcaves | Curiously followed by a Cobbler waking with a query about "LVR3C" 1974 | -10/Subcaves | Shifting Twisted Machinery released Battle Rifle 1975 | -10/Subcaves | Shifting Twisted Machinery released Mak. Leg 2374 | -10/Subcaves | Core integrity fell below 20% 2413 | -10/Subcaves | Destroyed by 7R-0NT(R) with Subdweller Laser Last Messages --------------- 02259_ NP-M5Q(R) destroyed. 02275_ O9-83D(O) collects matter. 02283_ Sub. Monowheel shoots sparks and powers down. 02286_ Dropped Broken Sub. Monowheel. 02370_ Overheating: Energy bleed (-15). 02374_ Overheating: Energy bleed (-8). 02375_ Destroyed Scrap Shield. 02377_ Critical hit (Meltdown: +280). 02379_ Overheating: Matter decay (-62). 02381_ Sub. Beam Cannon broken. 02381_ Overheating: Short circuit. 02382_ Power failure, Lgt. Ion Engine shutdown. 02382_ Sub. Monowheel broken. 02382_ Overheating: Short circuit. 02383_ Sub. Beam Cannon broken. 02383_ Overheating: Short circuit. 02387_ Spk. Treads destroyed. 02388_ Power failure, Lgt. Ion Engine shutdown. 02389_ Broken Sub. Beam Cannon destroyed. Map ----- +----------------------------------------------------+ | ?????????????????????????????????# ???## #?????? | | ??????????????? ??????###"###???# ??## ###????? | | ??????????????? ##????###### ??? #??### ####???? | | ??????????????? ####??# # ?? ???## ###???? | | ???????????????? ###?## ? #??### ##???? | | ???????????????? ##### ??##???### ##???? | | ????????????????? #### ????????## ###???? | | ???????????????? ### ## ??####### #######? | | ?????#####????? ## ### ###??####### #####? | | ????#######???? ## ## ##??## ### | | ????### #### ?## ###### ### | | ????## ### ## ####### #### | | ?????? ## ### #### ##### [ | | ??????? ### ##### ## # | | ?????? ### "####### ! | | ?????? # ##### ### ""##??### ## | | ????## ########## ""######## ] ## # | | ? ## ######### #########[ #### ## | | ? # ##### ###??### #### ##! &## ##### # | | ?### ###??### ##### R !### #### # | | ??## ###### " ##### ###### ##?# # | | ## #######" #### #########?## | | #" #### ####"##" ="#### ##??#####??## | | ##" ##### " RR O]##### ### ###?????????## | | ##### " ""##" ""## #######??????????## | | ??### """###"" "" @ ######???????????# ## | | ???## "##### " " "" ##???????????????#### | | ##???### ######### " ""###??????????????????? | | ##???###########?## < #######??????????????????? | | ??????######?????#### ########???????????????????? | | ?????????????????#########???????????????????????? | | ???????????????????#####?????????????????????????? | | ?????????????????????????????????????????????????? | | ?????????????????????????????????????????????????? | | ?????????????????????????????????????????????????? | | ?????????????????????????????????????????????????? | | ?????????????????????????????????????????????????? | | ?????????????????????????????????????????????????? | | ?????????????????????????????????????????????????? | | ?????????????????????????????????????????????????? | | ?????????????????????????????????????????????????? | | ?????????????????????????????????????????????????? | | ?????????????????????????????????????????????????? | | ?????????????????????????????????????????????????? | | ?????????????????????????????????????????????????? | | | | | | | | | | | +----------------------------------------------------+ Best States ------------- Heat Dissipation 25 Energy Generation 10 Energy Capacity 125 Matter Stores 300 Matter Capacity 300 Sight Range 16 Terrain Scan Density 10 Armor Coverage 100 Evasion (%) 40 Targeting Accuracy 6 Recoil Reduction 1 Item Schematics ----------------- None Robot Schematics ------------------ None Fabricated ------------ Nothing Repaired ---------- Nothing Studied --------- None Alien Tech Used ----------------- None Achievements -------------- None Challenges ------------ None Game ------ Seed CargoServoCartridge Manual? 0 Play Time 00:20:59 Cumulative 701.2 hours Start 2025.11.25 @ 15:31:05 End 2025.11.25 @ 15:49:12 Sessions 1 Manual Loads 0 Difficulty Rogue Special Mode None Game No. 301 Rogue 301 Adventurer 0 Explorer 0 Win Type - Total 72 Types 38/4/11/5/6/1/1/3/0/3 Lore% 96 Gallery% 89 Achievement% 80 Wizard Run 0 Options --------- Layout 1 ASCII 0 Keyboard 0 Movement Numpad Keybinds 0 Fullscreen 1 Font 24/Smallcaps Map View 50x35 Zoom Use 0% Tactical HUD 1 Map Filters NONE Filters NONE Steam 1 RUN: 15903cea-23d2-4f9a-b5db-4c9ff8a70c81